[Event "Early Titled Tuesday Blitz | February 8 2022"]
[White "Carre, Sylvain"]
[Black "Lauridsen, Jesper Morch"]
[WhiteFideId "642118"]
[BlackFideId "1401890"]
[WhiteElo "2105"]
[BlackElo "2226"]
[Result "0-1"]
[Round "08"]
[TimeControl "180+1"]
[Date "2022.02.08"]
[WhiteClock "0:02:17"]
[BlackClock "0:01:34"]

1. d4 {[%clk 0:02:57]}  g6 {[%clk 0:02:58]} 2. Bf4 {[%clk 0:02:58]}  d6 {[%clk 0:02:56]} 3. e3 {[%clk 0:02:58]}  Bg7 {[%clk 0:02:55]} 4. Nf3 {[%clk 0:02:59]}  Nd7 {[%clk 0:02:51]} 5. Bc4 {[%clk 0:02:59]}  h6 {[%clk 0:02:48]} 6. h4 {[%clk 0:02:58]}  e6 {[%clk 0:02:48]} 7. Nbd2 {[%clk 0:02:56]}  a6 {[%clk 0:02:47]} 8. Bg3 {[%clk 0:02:55]}  b5 {[%clk 0:02:46]} 9. Bb3 {[%clk 0:02:55]}  Bb7 {[%clk 0:02:45]} 10. O-O {[%clk 0:02:54]}  Ne7 {[%clk 0:02:42]} 11. a4 {[%clk 0:02:54]}  b4 {[%clk 0:02:37]} 12. c4 {[%clk 0:02:53]}  bxc3 {[%clk 0:02:35]} 13. bxc3 {[%clk 0:02:54]}  Nf5 {[%clk 0:02:34]} 14. Bh2 {[%clk 0:02:53]}  Nxh4 {[%clk 0:02:33]} 15. Nxh4 {[%clk 0:02:53]}  Qxh4 {[%clk 0:02:32]} 16. e4 {[%clk 0:02:52]}  O-O {[%clk 0:02:17]} 17. Rb1 {[%clk 0:02:53]}  Rab8 {[%clk 0:02:09]} 18. Bg3 {[%clk 0:02:52]}  Qe7 {[%clk 0:02:04]} 19. Qe2 {[%clk 0:02:51]}  e5 {[%clk 0:01:53]} 20. d5 {[%clk 0:02:37]}  f5 {[%clk 0:01:48]} 21. exf5 {[%clk 0:02:31]}  gxf5 {[%clk 0:01:48]} 22. f4 {[%clk 0:02:31]}  e4 {[%clk 0:01:34]} 23. Rfc1 {[%clk 0:02:17]}  Nc5 {[%clk 0:01:34]} 0-1


[Site "https://www.chess.com"]

[Event "Early Titled Tuesday Blitz | February 8 2022"]
[White "Chigaev, Maksim"]
[Black "Kosakowski, Jakub"]
[WhiteFideId "4108116"]
[BlackFideId "1185080"]
[WhiteElo "2502"]
[BlackElo "2476"]
[Result "1-0"]
[Round "08"]
[TimeControl "180+1"]
[Date "2022.02.08"]
[WhiteClock "0:00:10"]
[BlackClock "0:00:04"]

1. c4 {[%clk 0:03:00]}  g6 {[%clk 0:02:58]} 2. d4 {[%clk 0:03:00]}  Nf6 {[%clk 0:02:58]} 3. Nc3 {[%clk 0:02:59]}  Bg7 {[%clk 0:02:55]} 4. e4 {[%clk 0:02:59]}  d6 {[%clk 0:02:56]} 5. Nf3 {[%clk 0:02:59]}  O-O {[%clk 0:02:56]} 6. Be2 {[%clk 0:03:00]}  e5 {[%clk 0:02:57]} 7. O-O {[%clk 0:03:00]}  Nc6 {[%clk 0:02:58]} 8. d5 {[%clk 0:03:00]}  Ne7 {[%clk 0:02:58]} 9. b4 {[%clk 0:03:01]}  a5 {[%clk 0:02:58]} 10. bxa5 {[%clk 0:02:56]}  Rxa5 {[%clk 0:02:59]} 11. a4 {[%clk 0:02:56]}  c5 {[%clk 0:02:57]} 12. Ra3 {[%clk 0:02:54]}  Nd7 {[%clk 0:02:51]} 13. Re1 {[%clk 0:02:54]}  h6 {[%clk 0:02:51]} 14. Bd2 {[%clk 0:02:53]}  Ra6 {[%clk 0:02:50]} 15. Bd3 {[%clk 0:02:46]}  f5 {[%clk 0:02:48]} 16. Bc2 {[%clk 0:02:38]}  f4 {[%clk 0:02:40]} 17. Bd3 {[%clk 0:02:30]}  g5 {[%clk 0:02:39]} 18. h3 {[%clk 0:02:28]}  Ng6 {[%clk 0:02:38]} 19. Be2 {[%clk 0:02:27]}  Nf6 {[%clk 0:02:35]} 20. Nh2 {[%clk 0:02:28]}  Nh4 {[%clk 0:02:28]} 21. g4 {[%clk 0:02:21]}  Rf7 {[%clk 0:02:17]} 22. Nf3 {[%clk 0:02:05]}  Ng6 {[%clk 0:02:14]} 23. Kg2 {[%clk 0:01:50]}  Bf8 {[%clk 0:02:14]} 24. Rg1 {[%clk 0:01:50]}  Rg7 {[%clk 0:01:58]} 25. Kf1 {[%clk 0:01:49]}  Be7 {[%clk 0:01:54]} 26. Qc2 {[%clk 0:01:41]}  Nh8 {[%clk 0:01:37]} 27. Ke1 {[%clk 0:01:34]}  Nf7 {[%clk 0:01:36]} 28. Kd1 {[%clk 0:01:33]}  h5 {[%clk 0:01:18]} 29. Nh2 {[%clk 0:01:29]}  Nh6 {[%clk 0:01:07]} 30. Qd3 {[%clk 0:01:29]}  hxg4 {[%clk 0:01:03]} 31. Nxg4 {[%clk 0:01:27]}  Nhxg4 {[%clk 0:01:03]} 32. hxg4 {[%clk 0:01:28]}  Rh7 {[%clk 0:01:03]} 33. Kc2 {[%clk 0:01:16]}  Bd7 {[%clk 0:01:03]} 34. Raa1 {[%clk 0:01:15]}  Rh4 {[%clk 0:00:51]} 35. Kb2 {[%clk 0:01:00]}  Qf8 {[%clk 0:00:46]} 36. Rh1 {[%clk 0:00:58]}  Qh6 {[%clk 0:00:46]} 37. Rxh4 {[%clk 0:00:57]}  Qxh4 {[%clk 0:00:47]} 38. f3 {[%clk 0:00:54]}  Bd8 {[%clk 0:00:43]} 39. Nb5 {[%clk 0:00:52]}  Kf7 {[%clk 0:00:36]} 40. Ra3 {[%clk 0:00:42]}  Ke7 {[%clk 0:00:35]} 41. a5 {[%clk 0:00:34]}  Qf2 {[%clk 0:00:34]} 42. Ra1 {[%clk 0:00:33]}  b6 {[%clk 0:00:24]} 43. axb6 {[%clk 0:00:24]}  Rxb6 {[%clk 0:00:14]} 44. Ra7 {[%clk 0:00:22]}  Ke8 {[%clk 0:00:13]} 45. Kc2 {[%clk 0:00:22]}  Qg1 {[%clk 0:00:13]} 46. Ra2 {[%clk 0:00:13]}  Ke7 {[%clk 0:00:08]} 47. Bc3 {[%clk 0:00:12]}  Rb7 {[%clk 0:00:06]} 48. Qd2 {[%clk 0:00:12]}  Bb6 {[%clk 0:00:04]} 49. Ra1 {[%clk 0:00:12]}  Qh2 {[%clk 0:00:04]} 50. Bd3 {[%clk 0:00:12]}  Qxd2+ {[%clk 0:00:04]} 51. Kxd2 {[%clk 0:00:10]}  Bxb5 {[%clk 0:00:03]} 52. cxb5 {[%clk 0:00:11]}  Kf7 {[%clk 0:00:03]} 53. Bc4 {[%clk 0:00:10]}  Ke7 {[%clk 0:00:03]} 54. Ra6 {[%clk 0:00:11]}  Kd7 {[%clk 0:00:02]} 55. Kd3 {[%clk 0:00:11]}  Ne8 {[%clk 0:00:02]} 56. Ra1 {[%clk 0:00:11]}  Nc7 {[%clk 0:00:03]} 57. Rh1 {[%clk 0:00:12]}  Kc8 {[%clk 0:00:03]} 58. Rh8+ {[%clk 0:00:10]}  Kd7 {[%clk 0:00:03]} 59. Rh5 {[%clk 0:00:11]}  Ra7 {[%clk 0:00:02]} 60. Rxg5 {[%clk 0:00:12]}  Ra3 {[%clk 0:00:03]} 61. Rg7+ {[%clk 0:00:12]}  Kc8 {[%clk 0:00:03]} 62. Kc2 {[%clk 0:00:13]}  Ba5 {[%clk 0:00:03]} 63. Bxa5 {[%clk 0:00:12]}  Rxa5 {[%clk 0:00:04]} 64. b6 {[%clk 0:00:13]}  Nb5 {[%clk 0:00:04]} 65. Bxb5 {[%clk 0:00:09]}  Rxb5 {[%clk 0:00:05]} 66. b7+ {[%clk 0:00:10]}  Kb8 {[%clk 0:00:05]} 67. g5 {[%clk 0:00:11]}  Ra5 {[%clk 0:00:04]} 68. g6 {[%clk 0:00:10]}  Ra1 {[%clk 0:00:04]} 69. Rf7 {[%clk 0:00:10]}  Rg1 {[%clk 0:00:04]} 70. g7 {[%clk 0:00:10]} 1-0


[Site "https://www.chess.com"]

[Event "Early Titled Tuesday Blitz | February 8 2022"]
[White "Cunjalo, Faris"]
[Black "Sharavdorj, Dashzegve"]
[WhiteFideId "14410710"]
[BlackFideId "4900340"]
[WhiteElo "2263"]
[BlackElo "2366"]
[Result "0-1"]
[Round "08"]
[TimeControl "180+1"]
[Date "2022.02.08"]
[WhiteClock "0:00:14"]
[BlackClock "0:02:22"]

1. c4 {[%clk 0:00:56]}  Nf6 {[%clk 0:02:58]} 2. Nc3 {[%clk 0:00:56]}  g6 {[%clk 0:02:57]} 3. e4 {[%clk 0:00:56]}  d6 {[%clk 0:02:57]} 4. d4 {[%clk 0:00:56]}  Bg7 {[%clk 0:02:57]} 5. Be2 {[%clk 0:00:57]}  O-O {[%clk 0:02:57]} 6. Bg5 {[%clk 0:00:57]}  Na6 {[%clk 0:02:56]} 7. Qd2 {[%clk 0:00:57]}  e5 {[%clk 0:02:56]} 8. d5 {[%clk 0:00:56]}  Nc5 {[%clk 0:02:57]} 9. f3 {[%clk 0:00:57]}  a5 {[%clk 0:02:56]} 10. h4 {[%clk 0:00:57]}  Bd7 {[%clk 0:02:51]} 11. Nh3 {[%clk 0:00:57]}  c6 {[%clk 0:02:49]} 12. Nf2 {[%clk 0:00:56]}  cxd5 {[%clk 0:02:48]} 13. cxd5 {[%clk 0:00:57]}  Qe8 {[%clk 0:02:46]} 14. Be3 {[%clk 0:00:56]}  Nh5 {[%clk 0:02:44]} 15. Nd3 {[%clk 0:00:37]}  b6 {[%clk 0:02:39]} 16. Bf2 {[%clk 0:00:32]}  Rc8 {[%clk 0:02:36]} 17. Nxc5 {[%clk 0:00:28]}  bxc5 {[%clk 0:02:34]} 18. O-O-O {[%clk 0:00:25]}  Nf4 {[%clk 0:02:33]} 19. Bf1 {[%clk 0:00:23]}  c4 {[%clk 0:02:32]} 20. g3 {[%clk 0:00:19]}  Nd3+ {[%clk 0:02:32]} 21. Bxd3 {[%clk 0:00:20]}  cxd3 {[%clk 0:02:31]} 22. Qxd3 {[%clk 0:00:21]}  Ba4 {[%clk 0:02:26]} 23. Rd2 {[%clk 0:00:19]}  Bb5 {[%clk 0:02:25]} 24. Qe3 {[%clk 0:00:18]}  a4 {[%clk 0:02:25]} 25. Kb1 {[%clk 0:00:16]}  a3 {[%clk 0:02:24]} 26. b3 {[%clk 0:00:16]}  f5 {[%clk 0:02:23]} 27. Rc1 {[%clk 0:00:16]}  f4 {[%clk 0:02:23]} 28. gxf4 {[%clk 0:00:14]}  exf4 {[%clk 0:02:22]} 0-1


[Site "https://www.chess.com"]

[Event "Early Titled Tuesday Blitz | February 8 2022"]
[White "De Silva, L M S T"]
[Black "Lazavik, Denis"]
[WhiteFideId "9953698"]
[BlackFideId "13515110"]
[WhiteElo "1631"]
[BlackElo "2436"]
[Result "1/2-1/2"]
[Round "08"]
[TimeControl "180+1"]
[Date "2022.02.08"]
[WhiteClock "0:03:03"]
[BlackClock "0:02:46"]

1. e4 {[%clk 0:03:00]}  c5 {[%clk 0:02:58]} 2. Nf3 {[%clk 0:03:00]}  e6 {[%clk 0:02:59]} 3. d4 {[%clk 0:03:01]}  cxd4 {[%clk 0:02:59]} 4. Nxd4 {[%clk 0:03:02]}  Nc6 {[%clk 0:03:00]} 5. Be2 {[%clk 0:03:02]}  Nf6 {[%clk 0:03:00]} 6. Nc3 {[%clk 0:03:02]}  Qc7 {[%clk 0:03:00]} 7. O-O {[%clk 0:03:02]}  a6 {[%clk 0:02:59]} 8. a4 {[%clk 0:03:02]}  Be7 {[%clk 0:02:58]} 9. Be3 {[%clk 0:03:01]}  O-O {[%clk 0:02:49]} 10. f4 {[%clk 0:03:01]}  d6 {[%clk 0:02:48]} 11. Qe1 {[%clk 0:03:01]}  Nxd4 {[%clk 0:02:48]} 12. Bxd4 {[%clk 0:03:02]}  e5 {[%clk 0:02:44]} 13. fxe5 {[%clk 0:03:03]}  dxe5 {[%clk 0:02:45]} 14. Qg3 {[%clk 0:03:04]}  Bc5 {[%clk 0:02:44]} 15. Bxc5 {[%clk 0:03:05]}  Qxc5+ {[%clk 0:02:45]} 16. Kh1 {[%clk 0:03:05]}  Kh8 {[%clk 0:02:44]} 17. Rxf6 {[%clk 0:03:06]}  gxf6 {[%clk 0:02:45]} 18. Qh4 {[%clk 0:03:06]}  Rg8 {[%clk 0:02:45]} 19. Qxf6+ {[%clk 0:03:03]}  Rg7 {[%clk 0:02:46]} 1/2-1/2


[Site "https://www.chess.com"]

[Event "Early Titled Tuesday Blitz | February 8 2022"]
[White "Decuigniere, Tom"]
[Black "Gabdrakhmanov, Azat"]
[WhiteFideId "26093820"]
[BlackFideId "34189197"]
[WhiteElo "1997"]
[BlackElo "2279"]
[Result "0-1"]
[Round "08"]
[TimeControl "180+1"]
[Date "2022.02.08"]
[WhiteClock "0:00:01"]
[BlackClock "0:00:17"]

1. c4 {[%clk 0:03:00]}  Nf6 {[%clk 0:02:59]} 2. Nc3 {[%clk 0:03:00]}  g6 {[%clk 0:03:00]} 3. e4 {[%clk 0:03:01]}  d6 {[%clk 0:03:00]} 4. d4 {[%clk 0:03:01]}  Bg7 {[%clk 0:03:01]} 5. Nf3 {[%clk 0:03:01]}  O-O {[%clk 0:03:02]} 6. Be2 {[%clk 0:03:01]}  e5 {[%clk 0:03:02]} 7. O-O {[%clk 0:03:01]}  Nc6 {[%clk 0:03:03]} 8. d5 {[%clk 0:03:02]}  Ne7 {[%clk 0:03:03]} 9. Ne1 {[%clk 0:03:02]}  Nd7 {[%clk 0:03:02]} 10. Be3 {[%clk 0:03:03]}  f5 {[%clk 0:03:02]} 11. f3 {[%clk 0:03:04]}  f4 {[%clk 0:03:03]} 12. Bf2 {[%clk 0:03:04]}  g5 {[%clk 0:03:03]} 13. Rc1 {[%clk 0:03:04]}  Ng6 {[%clk 0:02:58]} 14. c5 {[%clk 0:03:04]}  Nxc5 {[%clk 0:02:57]} 15. b4 {[%clk 0:03:04]}  Na6 {[%clk 0:02:57]} 16. Nb5 {[%clk 0:02:59]}  Rf7 {[%clk 0:02:55]} 17. Nd3 {[%clk 0:02:57]}  b6 {[%clk 0:02:52]} 18. a4 {[%clk 0:02:55]}  h5 {[%clk 0:02:39]} 19. Kh1 {[%clk 0:02:54]}  Bf6 {[%clk 0:02:23]} 20. Be1 {[%clk 0:02:52]}  Qf8 {[%clk 0:02:17]} 21. Nf2 {[%clk 0:02:50]}  Bd8 {[%clk 0:02:15]} 22. Rc4 {[%clk 0:02:39]}  Nb8 {[%clk 0:02:13]} 23. Qc2 {[%clk 0:02:37]}  Qe7 {[%clk 0:02:12]} 24. Bd2 {[%clk 0:02:25]}  a6 {[%clk 0:02:11]} 25. Na3 {[%clk 0:01:43]}  Nd7 {[%clk 0:02:07]} 26. Rxc7 {[%clk 0:01:38]}  Bxc7 {[%clk 0:02:03]} 27. Qxc7 {[%clk 0:01:39]}  Nf6 {[%clk 0:01:59]} 28. Qxb6 {[%clk 0:01:36]}  g4 {[%clk 0:01:57]} 29. Nc4 {[%clk 0:01:33]}  g3 {[%clk 0:01:44]} 30. Nd3 {[%clk 0:01:25]}  Ne8 {[%clk 0:01:41]} 31. Qg1 {[%clk 0:00:43]}  Rg7 {[%clk 0:01:35]} 32. Nb6 {[%clk 0:00:39]}  Rb8 {[%clk 0:01:35]} 33. Nxc8 {[%clk 0:00:39]}  Rxc8 {[%clk 0:01:34]} 34. Rc1 {[%clk 0:00:35]}  Rxc1 {[%clk 0:01:31]} 35. Qxc1 {[%clk 0:00:35]}  gxh2 {[%clk 0:01:30]} 36. b5 {[%clk 0:00:23]}  axb5 {[%clk 0:01:29]} 37. axb5 {[%clk 0:00:24]}  Nh4 {[%clk 0:01:28]} 38. Ne1 {[%clk 0:00:20]}  Kh7 {[%clk 0:01:22]} 39. Qc8 {[%clk 0:00:17]}  Qd7 {[%clk 0:01:19]} 40. Qxd7 {[%clk 0:00:17]}  Rxd7 {[%clk 0:01:19]} 41. b6 {[%clk 0:00:17]}  Rb7 {[%clk 0:01:16]} 42. Ba5 {[%clk 0:00:17]}  Rb8 {[%clk 0:01:00]} 43. Ba6 {[%clk 0:00:14]}  Ng6 {[%clk 0:00:58]} 44. b7 {[%clk 0:00:13]}  Nf8 {[%clk 0:00:58]} 45. Bb6 {[%clk 0:00:12]}  Nd7 {[%clk 0:00:55]} 46. Ba7 {[%clk 0:00:11]}  Rd8 {[%clk 0:00:50]} 47. Bb5 {[%clk 0:00:08]}  Nef6 {[%clk 0:00:44]} 48. Nd3 {[%clk 0:00:06]}  Kg7 {[%clk 0:00:42]} 49. Nb4 {[%clk 0:00:06]}  Rh8 {[%clk 0:00:34]} 50. Bxd7 {[%clk 0:00:05]}  Nxd7 {[%clk 0:00:34]} 51. Nc6 {[%clk 0:00:06]}  h4 {[%clk 0:00:32]} 52. Kxh2 {[%clk 0:00:06]}  h3 {[%clk 0:00:29]} 53. gxh3 {[%clk 0:00:07]}  Rh6 {[%clk 0:00:25]} 54. b8=Q {[%clk 0:00:07]}  Nxb8 {[%clk 0:00:25]} 55. Bxb8 {[%clk 0:00:08]}  Rg6 {[%clk 0:00:24]} 56. Nd8 {[%clk 0:00:08]}  Kf8 {[%clk 0:00:18]} 57. Ne6+ {[%clk 0:00:06]}  Ke7 {[%clk 0:00:18]} 58. Ba7 {[%clk 0:00:01]}  Rg3 {[%clk 0:00:17]} 0-1


[Site "https://www.chess.com"]

[Event "Early Titled Tuesday Blitz | February 8 2022"]
[White "Demchenko, Anton"]
[Black "Gabrielian, Artur"]
[WhiteFideId "4160258"]
[BlackFideId "4131002"]
[WhiteElo "2539"]
[BlackElo "2440"]
[Result "1-0"]
[Round "08"]
[TimeControl "180+1"]
[Date "2022.02.08"]
[WhiteClock "0:00:44"]
[BlackClock "0:01:04"]

1. e4 {[%clk 0:03:00]}  c5 {[%clk 0:02:59]} 2. Nf3 {[%clk 0:03:01]}  d6 {[%clk 0:02:59]} 3. d4 {[%clk 0:03:02]}  cxd4 {[%clk 0:02:59]} 4. Qxd4 {[%clk 0:03:01]}  Nc6 {[%clk 0:02:59]} 5. Bb5 {[%clk 0:02:59]}  Bd7 {[%clk 0:02:56]} 6. Bxc6 {[%clk 0:03:00]}  Bxc6 {[%clk 0:02:56]} 7. Nc3 {[%clk 0:03:00]}  Nf6 {[%clk 0:02:57]} 8. Bg5 {[%clk 0:03:01]}  e6 {[%clk 0:02:57]} 9. O-O-O {[%clk 0:03:01]}  Be7 {[%clk 0:02:57]} 10. Qd3 {[%clk 0:03:01]}  O-O {[%clk 0:02:57]} 11. Nd4 {[%clk 0:02:58]}  Rc8 {[%clk 0:02:55]} 12. h4 {[%clk 0:02:57]}  Qb6 {[%clk 0:02:53]} 13. f3 {[%clk 0:02:54]}  Rfe8 {[%clk 0:02:50]} 14. g4 {[%clk 0:02:54]}  a6 {[%clk 0:02:42]} 15. Kb1 {[%clk 0:02:40]}  Qc7 {[%clk 0:02:35]} 16. Nce2 {[%clk 0:02:37]}  b5 {[%clk 0:02:22]} 17. Rhg1 {[%clk 0:02:28]}  Bb7 {[%clk 0:02:19]} 18. Ng3 {[%clk 0:02:27]}  d5 {[%clk 0:02:04]} 19. e5 {[%clk 0:01:43]}  Nd7 {[%clk 0:02:03]} 20. f4 {[%clk 0:01:33]}  Bc5 {[%clk 0:01:50]} 21. Rg2 {[%clk 0:01:07]}  h6 {[%clk 0:01:25]} 22. Bxh6 {[%clk 0:01:05]}  gxh6 {[%clk 0:01:25]} 23. g5 {[%clk 0:01:04]}  Bxd4 {[%clk 0:01:20]} 24. Qxd4 {[%clk 0:01:04]}  Qc4 {[%clk 0:01:18]} 25. Qd2 {[%clk 0:00:59]}  d4 {[%clk 0:01:16]} 26. Rgg1 {[%clk 0:00:45]}  Nc5 {[%clk 0:01:10]} 27. gxh6 {[%clk 0:00:45]}  Ne4 {[%clk 0:01:09]} 28. Nxe4+ {[%clk 0:00:45]}  Kh8 {[%clk 0:01:04]} 29. Nd6 {[%clk 0:00:44]} 1-0


[Site "https://www.chess.com"]

[Event "Early Titled Tuesday Blitz | February 8 2022"]
[White "Di Nicolantonio, Lucas"]
[Black "Shimanov, Aleksandr"]
[WhiteFideId "680460"]
[BlackFideId "4198603"]
[WhiteElo "2381"]
[BlackElo "2636"]
[Result "0-1"]
[Round "08"]
[TimeControl "180+1"]
[Date "2022.02.08"]
[WhiteClock "0:00:02"]
[BlackClock "0:01:03"]

1. e4 {[%clk 0:03:00]}  e6 {[%clk 0:02:55]} 2. d4 {[%clk 0:02:59]}  d5 {[%clk 0:02:55]} 3. Nc3 {[%clk 0:02:56]}  Bb4 {[%clk 0:02:53]} 4. e5 {[%clk 0:02:53]}  c5 {[%clk 0:02:53]} 5. Bd2 {[%clk 0:02:47]}  Ne7 {[%clk 0:02:51]} 6. Nb5 {[%clk 0:02:41]}  Bxd2+ {[%clk 0:02:44]} 7. Qxd2 {[%clk 0:02:41]}  O-O {[%clk 0:02:44]} 8. Nf3 {[%clk 0:02:32]}  b6 {[%clk 0:02:30]} 9. c3 {[%clk 0:02:27]}  Ba6 {[%clk 0:02:23]} 10. a4 {[%clk 0:02:25]}  Nbc6 {[%clk 0:02:21]} 11. Bd3 {[%clk 0:02:19]}  Bxb5 {[%clk 0:02:17]} 12. axb5 {[%clk 0:02:19]}  Na5 {[%clk 0:02:14]} 13. Rxa5 {[%clk 0:02:02]}  bxa5 {[%clk 0:02:12]} 14. dxc5 {[%clk 0:02:02]}  a4 {[%clk 0:01:58]} 15. O-O {[%clk 0:01:59]}  Qc7 {[%clk 0:01:57]} 16. Qe3 {[%clk 0:01:49]}  Rfc8 {[%clk 0:01:43]} 17. c6 {[%clk 0:01:47]}  a6 {[%clk 0:01:43]} 18. bxa6 {[%clk 0:01:30]}  Nxc6 {[%clk 0:01:42]} 19. Ra1 {[%clk 0:01:25]}  Rcb8 {[%clk 0:01:39]} 20. Qc5 {[%clk 0:01:04]}  Qb6 {[%clk 0:01:24]} 21. Qxb6 {[%clk 0:00:54]}  Rxb6 {[%clk 0:01:23]} 22. Ra2 {[%clk 0:00:49]}  Rab8 {[%clk 0:01:20]} 23. g3 {[%clk 0:00:37]}  Rxb2 {[%clk 0:01:18]} 24. Rxa4 {[%clk 0:00:35]}  R2b3 {[%clk 0:01:12]} 25. a7 {[%clk 0:00:15]}  Ra8 {[%clk 0:01:11]} 26. Ra6 {[%clk 0:00:13]}  Rxc3 {[%clk 0:01:09]} 27. Bb5 {[%clk 0:00:12]}  Nxa7 {[%clk 0:01:07]} 28. Nd4 {[%clk 0:00:12]}  Rcc8 {[%clk 0:01:07]} 29. Bd7 {[%clk 0:00:10]}  Rd8 {[%clk 0:01:07]} 30. Ba4 {[%clk 0:00:04]}  Rdb8 {[%clk 0:01:05]} 31. Kg2 {[%clk 0:00:04]}  Nc8 {[%clk 0:01:04]} 32. Rc6 {[%clk 0:00:02]}  Rxa4 {[%clk 0:01:03]} 0-1


[Site "https://www.chess.com"]

[Event "Early Titled Tuesday Blitz | February 8 2022"]
[White "Dobre, Claudiu-Cristian"]
[Black "Janaszak, Dawid"]
[WhiteFideId "1211854"]
[BlackFideId "1119206"]
[WhiteElo "2207"]
[BlackElo "2199"]
[Result "1-0"]
[Round "08"]
[TimeControl "180+1"]
[Date "2022.02.08"]
[WhiteClock "0:00:26"]
[BlackClock "0:00:34"]

1. c4 {[%clk 0:03:00]}  b6 {[%clk 0:02:58]} 2. Nf3 {[%clk 0:02:59]}  Bb7 {[%clk 0:02:59]} 3. g3 {[%clk 0:02:59]}  f5 {[%clk 0:02:57]} 4. Bg2 {[%clk 0:02:54]}  Nf6 {[%clk 0:02:58]} 5. O-O {[%clk 0:02:50]}  g6 {[%clk 0:02:58]} 6. b4 {[%clk 0:02:47]}  Bg7 {[%clk 0:02:58]} 7. Bb2 {[%clk 0:02:47]}  O-O {[%clk 0:02:58]} 8. d3 {[%clk 0:02:42]}  d6 {[%clk 0:02:57]} 9. Nbd2 {[%clk 0:02:39]}  e5 {[%clk 0:02:57]} 10. c5 {[%clk 0:02:35]}  Nbd7 {[%clk 0:02:51]} 11. Ng5 {[%clk 0:02:19]}  Bxg2 {[%clk 0:02:50]} 12. Kxg2 {[%clk 0:02:18]}  Qe7 {[%clk 0:02:43]} 13. Qb3+ {[%clk 0:02:14]}  d5 {[%clk 0:02:38]} 14. c6 {[%clk 0:02:10]}  Nb8 {[%clk 0:02:32]} 15. b5 {[%clk 0:02:10]}  Rd8 {[%clk 0:02:21]} 16. Rac1 {[%clk 0:02:07]}  a6 {[%clk 0:02:09]} 17. a4 {[%clk 0:02:07]}  axb5 {[%clk 0:02:09]} 18. axb5 {[%clk 0:02:07]}  Ng4 {[%clk 0:02:04]} 19. Ngf3 {[%clk 0:01:59]}  e4 {[%clk 0:01:51]} 20. dxe4 {[%clk 0:01:55]}  fxe4 {[%clk 0:01:52]} 21. Nd4 {[%clk 0:01:22]}  e3 {[%clk 0:01:51]} 22. N2f3 {[%clk 0:01:16]}  exf2 {[%clk 0:01:49]} 23. Rxf2 {[%clk 0:01:04]}  Nxf2 {[%clk 0:01:39]} 24. Kxf2 {[%clk 0:01:04]}  Bh6 {[%clk 0:01:38]} 25. Ra1 {[%clk 0:00:59]}  Rxa1 {[%clk 0:01:37]} 26. Bxa1 {[%clk 0:00:59]}  Qc5 {[%clk 0:01:20]} 27. Qc3 {[%clk 0:00:55]}  Bg7 {[%clk 0:01:12]} 28. Qxc5 {[%clk 0:00:52]}  bxc5 {[%clk 0:01:13]} 29. Ne6 {[%clk 0:00:52]}  Rd6 {[%clk 0:00:45]} 30. Nxg7 {[%clk 0:00:36]}  Nxc6 {[%clk 0:00:46]} 31. Ne8 {[%clk 0:00:30]}  Re6 {[%clk 0:00:37]} 32. Nxc7 {[%clk 0:00:30]}  Re7 {[%clk 0:00:36]} 33. Nxd5 {[%clk 0:00:30]}  Ra7 {[%clk 0:00:35]} 34. bxc6 {[%clk 0:00:28]}  Rxa1 {[%clk 0:00:35]} 35. c7 {[%clk 0:00:27]}  Ra8 {[%clk 0:00:36]} 36. Nb6 {[%clk 0:00:27]}  c4 {[%clk 0:00:34]} 37. Nxa8 {[%clk 0:00:26]} 1-0


[Site "https://www.chess.com"]

[Event "Early Titled Tuesday Blitz | February 8 2022"]
[White "Eynullayev, Altay"]
[Black "Lagunov, Evgenij"]
[WhiteFideId "13413562"]
[BlackFideId "4125363"]
[WhiteElo "2079"]
[BlackElo "2200"]
[Result "1-0"]
[Round "08"]
[TimeControl "180+1"]
[Date "2022.02.08"]
[WhiteClock "0:01:54"]
[BlackClock "0:00:46"]

1. e4 {[%clk 0:03:00]}  c5 {[%clk 0:02:59]} 2. Nf3 {[%clk 0:02:59]}  e6 {[%clk 0:02:59]} 3. d4 {[%clk 0:02:58]}  cxd4 {[%clk 0:03:00]} 4. Nxd4 {[%clk 0:02:59]}  Nf6 {[%clk 0:03:00]} 5. Nc3 {[%clk 0:02:58]}  Nc6 {[%clk 0:03:00]} 6. Nxc6 {[%clk 0:02:59]}  bxc6 {[%clk 0:02:59]} 7. e5 {[%clk 0:02:59]}  Nd5 {[%clk 0:02:59]} 8. Ne4 {[%clk 0:03:00]}  Qc7 {[%clk 0:02:59]} 9. f4 {[%clk 0:03:00]}  Qb6 {[%clk 0:02:49]} 10. c4 {[%clk 0:02:59]}  Ne3 {[%clk 0:02:39]} 11. Qd3 {[%clk 0:02:41]}  Bb4+ {[%clk 0:02:32]} 12. Bd2 {[%clk 0:02:33]}  Bxd2+ {[%clk 0:02:28]} 13. Qxd2 {[%clk 0:02:30]}  Nxf1 {[%clk 0:02:06]} 14. Nd6+ {[%clk 0:02:29]}  Kf8 {[%clk 0:01:57]} 15. Rxf1 {[%clk 0:02:29]}  c5 {[%clk 0:01:52]} 16. f5 {[%clk 0:02:26]}  Kg8 {[%clk 0:01:18]} 17. fxe6 {[%clk 0:02:18]}  fxe6 {[%clk 0:01:18]} 18. Qf4 {[%clk 0:02:12]}  h6 {[%clk 0:01:16]} 19. Ne8 {[%clk 0:01:59]}  Qb4+ {[%clk 0:01:03]} 20. Kd1 {[%clk 0:01:58]}  Qa4+ {[%clk 0:00:46]} 21. b3 {[%clk 0:01:54]} 1-0


[Site "https://www.chess.com"]

[Event "Early Titled Tuesday Blitz | February 8 2022"]
[White "FGHSMN"]
[Black "Le Ruyet, Leopold"]
[BlackFideId "645923"]
[WhiteElo "2762"]
[BlackElo "2276"]
[Result "1-0"]
[Round "08"]
[TimeControl "180+1"]
[Date "2022.02.08"]
[WhiteClock "0:00:19"]
[BlackClock "0:00:05"]

1. b3 {[%clk 0:02:39]}  Nf6 {[%clk 0:02:57]} 2. Bb2 {[%clk 0:02:39]}  e6 {[%clk 0:02:55]} 3. Nf3 {[%clk 0:02:38]}  d5 {[%clk 0:02:55]} 4. c4 {[%clk 0:02:37]}  Be7 {[%clk 0:02:55]} 5. e3 {[%clk 0:02:37]}  O-O {[%clk 0:02:56]} 6. Nc3 {[%clk 0:02:34]}  c5 {[%clk 0:02:54]} 7. cxd5 {[%clk 0:02:34]}  Nxd5 {[%clk 0:02:49]} 8. h4 {[%clk 0:02:34]}  Bf6 {[%clk 0:02:48]} 9. Qc2 {[%clk 0:02:18]}  Nc6 {[%clk 0:02:40]} 10. Ng5 {[%clk 0:02:16]}  g6 {[%clk 0:02:34]} 11. Nce4 {[%clk 0:02:15]}  Bxb2 {[%clk 0:02:29]} 12. Qxb2 {[%clk 0:02:13]}  f6 {[%clk 0:02:24]} 13. Nf3 {[%clk 0:02:10]}  b6 {[%clk 0:02:14]} 14. h5 {[%clk 0:02:08]}  Bb7 {[%clk 0:02:04]} 15. hxg6 {[%clk 0:02:06]}  hxg6 {[%clk 0:02:03]} 16. g4 {[%clk 0:01:40]}  Ndb4 {[%clk 0:01:53]} 17. g5 {[%clk 0:01:31]}  Nd4 {[%clk 0:01:35]} 18. Nxd4 {[%clk 0:01:25]}  cxd4 {[%clk 0:01:06]} 19. Rh4 {[%clk 0:01:12]}  fxg5 {[%clk 0:00:53]} 20. Rg4 {[%clk 0:01:11]}  dxe3 {[%clk 0:00:53]} 21. dxe3 {[%clk 0:01:10]}  Bxe4 {[%clk 0:00:25]} 22. Rxe4 {[%clk 0:01:07]}  Rc8 {[%clk 0:00:22]} 23. Rxb4 {[%clk 0:00:31]}  Qd6 {[%clk 0:00:12]} 24. Rd4 {[%clk 0:00:29]}  Qh2 {[%clk 0:00:12]} 25. Rd7 {[%clk 0:00:27]}  Rf7 {[%clk 0:00:07]} 26. Rxf7 {[%clk 0:00:27]}  Kxf7 {[%clk 0:00:08]} 27. Rc1 {[%clk 0:00:27]}  Rd8 {[%clk 0:00:08]} 28. Rd1 {[%clk 0:00:26]}  Rc8 {[%clk 0:00:07]} 29. Rd7+ {[%clk 0:00:26]}  Ke8 {[%clk 0:00:07]} 30. Qg7 {[%clk 0:00:19]}  Rc1+ {[%clk 0:00:05]} 31. Kd2 {[%clk 0:00:19]}  Qxf2+ {[%clk 0:00:05]} 32. Kxc1 {[%clk 0:00:19]}  Qxf1+ {[%clk 0:00:05]} 33. Rd1 {[%clk 0:00:19]} 1-0


[Site "https://www.chess.com"]